Cogmind - Beta 14 @@@ ROGUE MODE // 2024.08.13 @ 09:59:44 Player: Lillith Result: Self-destructed Performance ------------- Evolutions (0) 0 Regions Visited (4) 800 Robots Destroyed (29) 145 Value Destroyed (868) 868 Prototype IDs (14) 280 Alien Tech Used (0) 0 Bonus (300) 300 TOTAL SCORE: 2393 Bonus ------- Registered with UFD 300 Cogmind --------- Core Integrity 147/250 Matter 290/300 Energy 100/100 System Corruption 0% Temperature Cool (0) Movement Rolling (155) Ox5 Location -9/Scraptown Parts ------- > --- POWER (1) -------- (None) > --- PROPULSION (2) --- Wheel > --- UTILITY (2) ------ High-capacity Storage Unit Light Armor Plating > --- WEAPON (2) ------- Subdweller Beam Cannon Subdweller Machine Gun > --- INVENTORY (20) --- Meta Core Improved Aluminum Leg Improved Aluminum Leg Light Armor Plating Riot Gun Battle Rifle Battle Rifle Barrage Gun Subdweller Shrapnel Launcher Subdweller Shrapnel Launcher Dirty Datajack (20) Makeshift Axe Peak State ------------ > --- POWER ------------ Subdweller Power Source > --- PROPULSION ------- Improved Aluminum Leg Improved Aluminum Leg > --- UTILITY ---------- High-capacity Storage Unit Light Armor Plating > --- WEAPON ----------- Subdweller Beam Cannon Subdweller Machine Gun > --- INVENTORY -------- Subdweller Power Source Meta Core Subdweller Monowheel Subdweller Optics Riot Gun Battle Rifle Battle Rifle Barrage Gun Grenade Launcher Subdweller Shrapnel Launcher Subdweller Shrapnel Launcher Dirty Datajack Dirty Datajack Flamer Makeshift Axe [Rating: 17] Favorites ----------- Power Ion Engine Engine Ion Engine Propulsion Improved Aluminum Leg Treads Light Treads Leg Improved Aluminum Leg Wheel Subdweller Monowheel Utility High-capacity Storage Unit Storage High-capacity Storage Unit Protection Light Armor Plating Weapon Subdweller Machine Gun Energy Gun Heavy EM Pulse Gun Energy Cannon Subdweller Beam Cannon Ballistic Gun Subdweller Machine Gun Ballistic Cannon Battle Cannon Launcher Grenade Launcher Build | -11 -10 -10 -9 -9 ------- Run | Yrd Mat Sub Rec Scr Slots Evolved . | . . . . . Power . | . . . . . Propulsion . | . . . . . Utility . | . . . . . Weapon . | . . . . . Parts Attached 41 | 6 9 22 3 1 Power 5 | 1 2 1 1 . Engine 5 | 1 2 1 1 . Core . | . . . . . Reactor . | . . . . . Propulsion 12 | 2 3 5 1 1 Treads 5 | 2 3 . . . Leg 5 | . . 4 1 . Wheel 2 | . . 1 . 1 Hover . | . . . . . Flight . | . . . . . Utility 5 | 1 1 2 1 . Device . | . . . . . Storage 2 | 1 . 1 . . Processor . | . . . . . Hackware . | . . . . . Protection 3 | . 1 1 1 . Artifact . | . . . . . Weapon 19 | 2 3 14 . . Energy Gun 8 | 2 3 3 . . Energy Cannon 2 | . . 2 . . Ballistic Gun 1 | . . 1 . . Ballistic Cannon 4 | . . 4 . . Launcher 4 | . . 4 . . Special Weapon . | . . . . . Impact Weapon . | . . . . . Slashing Weapon . | . . . . . Piercing Weapon . | . . . . . Special Melee Weapon . | . . . . . Unidentified Prototypes . | . . . . . Parts Lost 9 | . . 7 2 . Power 2 | . . 1 1 . Propulsion 3 | . . 2 1 . Utility 1 | . . 1 . . Weapon 3 | . . 3 . . Highest Loss Streak 3 | . . 3 2 . To Critical Strikes . | . . . . . Average Slot Usage (%) 91 | . 98 89 93 92 Engine 11 | . 14 14 13 6 Treads 5 | . 27 3 . . Leg 22 | . . 23 27 27 Storage 12 | . 14 10 14 14 Protection 10 | . 13 7 8 14 Energy Gun 5 | . 27 3 . . Energy Cannon 9 | . . 7 14 14 Ballistic Gun 9 | . . 8 14 14 Ballistic Cannon 3 | . . 7 . . Peak Build Rating 17 | 6 10 15 17 17 Average Rating 13 | 5 9 12 16 14 On Entrance 9 | . 6 10 15 17 Naked Turns . | . . . . . Heaviest Build 60 | 12 17 55 60 60 Greatest Support 40 | 40 40 40 26 26 Greatest Overweight (x) 18 | 3 . 2 2 18 Average Overweight (x) 1 | . . . 2 2 Largest Inventory Capacity 20 | 8 8 20 20 20 Average Capacity 15 | 7 8 12 20 20 Most Carried 17 | 4 8 17 17 17 Average Carried 11 | 2 7 8 16 14 Final Capacity 20 | 8 8 20 20 20 Final Carried 17 | 4 8 17 17 12 Class Distribution -------------------- 98% | Mutant Dominant Class ---------------- Mutant | -10/Materials Mutant | -10/Subcaves Mutant | -9/Recycling Mutant | -9/Scraptown Resources | -11 -10 -10 -9 -9 ----------- Run | Yrd Mat Sub Rec Scr Matter Collected 1021 | 197 153 639 32 . Remotely . | . . . . . Salvage Created 898 | . 571 284 43 . Parts 48 | . 30 16 2 . Haulers Intercepted 2 | . 2 . . . Recyclers Shooed . | . . . . . Parts Field Recycled . | . . . . . Retrieved Matter . | . . . . . Parts Self-Destructed 6 | . . 6 . . Prevented . | . . . . . Kills | -11 -10 -10 -9 -9 ------- Run | Yrd Mat Sub Rec Scr Combat Hostiles Destroyed 23 | . 9 13 1 . Guns 12 | . 7 4 1 . Cannons 5 | . . 5 . . AOE 6 | . 2 4 . . Classes Destroyed 7 | . 3 3 1 . Tunneler 2 | . 2 . . . Hauler 2 | . 2 . . . Turret 2 | . . 2 . . Swarmer 4 | . . 4 . . Grunt 9 | . 9 . . . Sentry 1 | . . . 1 . Subdweller 9 | . . 9 . . Best Kill Streak 4 | . 3 4 1 . Combat Bots Only 4 | . 2 4 1 . Max Kills in Single Turn 2 | . 2 2 1 . Gunslinging . | . . . . . Exploded 1 | . 1 1 . . Melee . | . . . . . Uniques/NPCs Destroyed . | . . . . . Combat | -11 -10 -10 -9 -9 -------- Run | Yrd Mat Sub Rec Scr Hostile Shots Fired 134 | . 28 98 8 . Missed 47 | . 6 40 1 . Damage Taken 1602 | . 279 1225 98 . Core 103 | . 23 66 14 . Absorbed by Shields . | . . . . . Redirected to Shielding 8 | . 4 4 . . Core Remaining (%) 100 | 100 . . . . Volleys Fired 77 | . 26 47 4 . Largest 2 | . 2 2 2 . Hottest 110 | . 90 110 110 . Shots Fired 151 | . 52 91 8 . Gun 95 | . 52 39 4 . Cannon 45 | . . 41 4 . Launcher 11 | . . 11 . . Special . | . . . . . Kinetic 77 | . . 73 4 . Thermal 9 | . . 5 4 . Explosive 1 | . . 1 . . Electromagnetic 64 | . 52 12 . . Robot Hit Streak 21 | . 7 21 10 . Robot Miss Streak 5 | . 2 5 1 . Penetration Max . | . . . . . Secondary Targets 2 | . 1 1 . . Max Gunslinging Chain 1 | . 1 1 . . Shots Hit Robots 98 | . 30 61 7 . Core Hits 46 | . 17 27 2 . Critical Kills . | . . . . . Critical Parts Destroyed . | . . . . . Critical Strikes 3 | . 1 2 . . Blast 2 | . . 2 . . Corrupt 1 | . 1 . . . Melee Attacks . | . . . . . Impact . | . . . . . Slashing . | . . . . . Piercing . | . . . . . Sneak Attacks . | . . . . . Combat Hostiles . | . . . . . Follow-up Attacks . | . . . . . Damage Inflicted 2592 | . 649 1775 168 . Guns 1086 | . 480 516 90 . Cannons 609 | . . 531 78 . Explosions 897 | . 169 728 . . Melee . | . . . . . Ramming . | . . . . . Kinetic 1674 | . . 1584 90 . Thermal 297 | . 169 50 78 . Explosive . | . . . . . Electromagnetic 621 | . 480 141 . . Impact . | . . . . . Slashing . | . . . . . Piercing . | . . . . . Highest Corruption . | . . . . . Average Corruption . | . . . . . Corruption Purged . | . . . . . Corruption Blocked . | . . . . . Overload Shots . | . . . . . Overflow Damage 2 | . . 2 . . Projectiles . | . . . . . Explosions 2 | . . 2 . . Melee . | . . . . . Knockbacks 7 | . . 7 . . Impact . | . . . . . Kinetic 7 | . . 7 . . Secondary . | . . . . . Self-Inflicted Damage 24 | . . 24 . . Shots 1 | . . 1 . . Rammed . | . . . . . Targets Rammed . | . . . . . Kicked . | . . . . . Crushed . | . . . . . Highest Temperature 204 | . 150 7 204 . Average Temperature 57 | . 52 3 106 . Received Heat Transfer 534 | . 159 348 27 . Siege Activations . | . . . . . Robots Corrupted . | . . . . . Combat Hostiles . | . . . . . Parts Fried 2 | . 1 1 . . Impact Corruptions . | . . . . . Robots Melted . | . . . . . Combat Hostiles . | . . . . . Parts Melted 2 | . . 1 1 . Heat Transferred 385 | . 200 74 111 . Parts Sabotaged . | . . . . . Parts Stolen . | . . . . . Parts Stripped . | . . . . . Power Chain Reactions 2 | . 2 . . . Alert | -11 -10 -10 -9 -9 ------- Run | Yrd Mat Sub Rec Scr Peak Influence 149 | . 149 . 21 . Initial . | . . . . . Average 27 | . 36 . 5 . Maximum Alert Level . | . . . . . Low Security (%) 100 | 100 100 . 100 . Level 1 . | . . . . . Level 2 . | . . . . . Level 3 . | . . . . . Level 4 . | . . . . . Level 5 . | . . . . . High Security . | . . . . . Max Security . | . . . . . Squads Dispatched 2 | . 2 . . . Investigation 1 | . 1 . . . Extermination . | . . . . . Reinforcement 1 | . 1 . . . Assault . | . . . . . Garrison . | . . . . . Intercept . | . . . . . Searches Triggered . | . . . . . Construction Impeded . | . . . . . Haulers Reinforced . | . . . . . Active Scanning Responses . | . . . . . Cargo Convoy Interrupts . | . . . . . Stealth | -11 -10 -10 -9 -9 --------- Run | Yrd Mat Sub Rec Scr Distress Signals . | . . . . . Communications Jammed . | . . . . . Distress Signals . | . . . . . Times Spotted 33 | . 14 18 1 . Peak Tracking Total 6 | . 3 6 1 . Tactical Retreats 2 | . . 2 . . Traps | -11 -10 -10 -9 -9 ------- Run | Yrd Mat Sub Rec Scr Traps Triggered 4 | . 2 2 . . Indirectly . | . . . . . Trap Hack Attempts . | . . . . . Triggered . | . . . . . Disarmed . | . . . . . Reprogrammed . | . . . . . Reused . | . . . . . Traps Extracted . | . . . . . Installed 1 | . . 1 . . Triggered . | . . . . . Most Traps Carried 1 | . . 1 . . Machines | -11 -10 -10 -9 -9 ---------- Run | Yrd Mat Sub Rec Scr Machines Disabled 3 | . . 3 . . Max in Single Turn 2 | . . 2 . . Machines Repaired . | . . . . . Machines Dismantled . | . . . . . Machines Sabotaged . | . . . . . Overloaded Fab Kills . | . . . . . Hacking | -11 -10 -10 -9 -9 --------- Run | Yrd Mat Sub Rec Scr Machines Accessed 10 | . 6 2 . 2 Terminals 6 | . 6 . . . Fabricators . | . . . . . Repair Stations . | . . . . . Recycling Units . | . . . . . Scanalyzers . | . . . . . Garrison Access . | . . . . . Total Hacks 27 | . 12 5 . 10 Successful 20 | . 5 5 . 10 Failed 7 | . 7 . . . Catastrophic 1 | . 1 . . . Database Lockouts . | . . . . . Manual 12 | . 12 . . . Terminals 12 | . 12 . . . Fabricators . | . . . . . Repair Stations . | . . . . . Recycling Units . | . . . . . Scanalyzers . | . . . . . Garrison Access . | . . . . . Terminal Hacks 15 | . . 5 . 10 Record 14 | . . 4 . 10 Derelict Proto ID Bank 1 | . . 1 . . Fabricator Hacks . | . . . . . Repair Station Hacks . | . . . . . Recycling Unit Hacks . | . . . . . Scanalyzer . | . . . . . Garrison Access Hacks . | . . . . . Unauthorized Hacks 5 | . 5 . . . Terminals 5 | . 5 . . . Skim 5 | . 5 . . . Fabricators . | . . . . . Repair Stations . | . . . . . Recycling Units . | . . . . . Scanalyzers . | . . . . . Garrison Access . | . . . . . Data Cores Recovered . | . . . . . Used . | . . . . . Hacking Detections 4 | . 4 . . . Full Trace Events 1 | . 1 . . . Feedback Events . | . . . . . Feedback Blocked . | . . . . . Robot Schematics Acquired . | . . . . . Robots Built . | . . . . . Authchips . | . . . . . Time . | . . . . . Total Robot Build Rating . | . . . . . Part Schematics Acquired . | . . . . . Parts Built . | . . . . . Authchips . | . . . . . Time . | . . . . . Total Part Build Rating . | . . . . . Parts Repaired . | . . . . . Time . | . . . . . Parts Recycled . | . . . . . Recycled Matter . | . . . . . Retrieved Matter . | . . . . . Retrieved Components . | . . . . . Parts Scanalyzed . | . . . . . Part Schematics Acquired . | . . . . . Parts Damaged . | . . . . . Bothacking | -11 -10 -10 -9 -9 ------------ Run | Yrd Mat Sub Rec Scr Used RIF Installer . | . . . . . Robots Hacked . | . . . . . Non-combat . | . . . . . Combat . | . . . . . Robot Hacks Applied . | . . . . . Relay Couplers Released . | . . . . . Fabnet Peak Effective % . | . . . . . Robots Rewired . | . . . . . Allies Hacked . | . . . . . Hacks Repelled . | . . . . . Allies | -11 -10 -10 -9 -9 -------- Run | Yrd Mat Sub Rec Scr Total Allies . | . . . . . Largest Group . | . . . . . Highest-Rated Group . | . . . . . Highest-Rated Ally . | . . . . . Total Orders . | . . . . . Ally Attacks . | . . . . . Total Damage . | . . . . . Kills . | . . . . . Allies Corrupted . | . . . . . Allies Melted . | . . . . . Intel | -11 -10 -10 -9 -9 ------- Run | Yrd Mat Sub Rec Scr Robot Analysis Total . | . . . . . Derelict Logs Recovered 8 | . . 3 . 5 Drone Launches . | . . . . . Drone Recoveries . | . . . . . Exploration | -11 -10 -10 -9 -9 ------------- Run | Yrd Mat Sub Rec Scr Turns Passed 11084 | 69 1492 4444 582 4497 Spaces Moved 4783 | 38 547 2258 218 1722 Core 13 | 10 . . . 3 Treads 926 | 28 547 351 . . Legs 3697 | . . 1767 218 1712 Wheels 147 | . . 140 . 7 Hover . | . . . . . Flight . | . . . . . Fastest Speed 50 | 50 160 120 260 155 Average Speed 213 | 149 160 186 260 260 Slowest Speed 950 | 200 160 260 260 950 Overloaded Moves . | . . . . . Propulsion Burnouts . | . . . . . Robots Hopped . | . . . . . Cave-ins Triggered . | . . . . . Exploration Rate (%) 61 | 5 89 80 45 87 Regions Visited 4 Branch Regions 3 Pre-discovered Areas 1 | . . . . 1 Known Exits Taken 1 | . . 1 . . Unknown Exits Taken 3 | 1 1 . 1 . Scrap Searched 17 | . . 13 . 4 Spaces Dug . | . . . . . Terrain Destroyed 130 | . 10 119 1 . Melee . | . . . . . Projectile 4 | . . 3 1 . AOE 126 | . 10 116 . . Terrain Rammed . | . . . . . Walls Destroyed . | . . . . . Machines Disabled . | . . . . . Actions | -11 -10 -10 -9 -9 --------- Run | Yrd Mat Sub Rec Scr Total 5507 | 47 1115 2387 226 1732 Wait 535 | . 516 19 . . Move 4779 | 37 546 2257 217 1722 Hop . | . . . . . Pick Up 39 | 4 9 24 2 . Fast Attach 13 | 6 3 2 1 1 Attach 11 | . 1 8 2 . Detach 3 | . . 1 . 2 Swap 17 | . 5 12 . . Drop 25 | . 9 9 . 7 Fire 77 | . 26 47 4 . Melee . | . . . . . Ram . | . . . . . Kick . | . . . . . Crush . | . . . . . Escape Stasis . | . . . . . Rewire . | . . . . . Trap 1 | . . 1 . . Miscellaneous 7 | . . 7 . . Route ------- -11/Scrapyard -10/Materials (discovered 4 exits: [*Mat x2] / [*Min] / *Sub) -10/Subcaves (discovered 3 exits: [*Mat x2] / *Rec) -9/Recycling (discovered 2 exits: Fac / *Scr) -9/Scraptown (discovered 1 exit: [*Fac]) History --------- Turn | Location | Event 17 | -11/Scrapyard | Discovered new exit (range 15) 70 | -11/Scrapyard | Entered Materials 313 | -10/Materials | Build established: Mutant 325 | -10/Materials | Discovered new exit (range 16) 638 | -10/Materials | Discovered new exit (range 13) 763 | -10/Materials | Learned 2 Mines zone layouts 844 | -10/Materials | Discovered new exit (range 3) 866 | -10/Materials | Learned 4 Recycling zone layouts 1537 | -10/Materials | Discovered new exit (range 5) 1562 | -10/Materials | Entered Subcaves 1563 | -10/Subcaves | Identified exit to Recycling 1569 | -10/Subcaves | Learned 2 Materials zone layouts 1686 | -10/Subcaves | Shifting Twisted Machinery released Battle Rifle 1687 | -10/Subcaves | Shifting Twisted Machinery released Riot Gun 1810 | -10/Subcaves | Learned Materials terminal intel 1842 | -10/Subcaves | Visited 4L-MR0's lab 1980 | -10/Subcaves | Discovered new exit (range 11) 2117 | -10/Subcaves | Shifting Twisted Machinery released Sub. Shrapnel Launcher 2121 | -10/Subcaves | Shifting Twisted Machinery released Sub. Power Source 2174 | -10/Subcaves | Lost 3 parts (1n2w) 2337 | -10/Subcaves | Discovered new exit (range 16) 2755 | -10/Subcaves | Visited Clippyterm 2759 | -10/Subcaves | Learned 40 Factory zone layouts 2835 | -10/Subcaves | Disturbed a concealed Subdweller 3316 | -10/Subcaves | Ambushed by Subdweller buried in earth 3541 | -10/Subcaves | Learned location of 1 exit from Materials 5136 | -10/Subcaves | Found Meta Core 6006 | -10/Subcaves | Entered Recycling 6007 | -9/Recycling | Identified exit to Factory 6518 | -9/Recycling | Scanned before Scraplab entrance 6557 | -9/Recycling | Entered Scraplab 6578 | -9/Recycling | Discovered new exit (range 4) 6588 | -9/Recycling | Entered Scraptown 7059 | -9/Scraptown | Scanned Subdweller tech in exchange for log data 7064 | -9/Scraptown | Learned 8 Research zone layouts 7067 | -9/Scraptown | Learned Research emergency access door positions 7069 | -9/Scraptown | Learned Research stockpile data 7072 | -9/Scraptown | Learned Research trap positions 7077 | -9/Scraptown | Learned location of Warlord (-5) 7311 | -9/Scraptown | Visited TADAMA 7405 | -9/Scraptown | Visited Awakened 7496 | -9/Scraptown | Visited Scrapoid Research Area 7584 | -9/Scraptown | Visited Cave Peace 7712 | -9/Scraptown | Visited Spacefarers 8268 | -9/Scraptown | Visited Cyclists 8372 | -9/Scraptown | Visited Comm Corps 8531 | -9/Scraptown | Visited UFD Registry 8531 | -9/Scraptown | Registered with UFD as "Roughcoil" 8736 | -9/Scraptown | Discovered new exit (range 13) 8809 | -9/Scraptown | Guru changed UFD alias to "Gearpod" 9150 | -9/Scraptown | Visited Chapter 10 9228 | -9/Scraptown | Visited Observation Area 9402 | -9/Scraptown | Visited Curators Association 9514 | -9/Scraptown | Visited Scrap Suit Storage 9594 | -9/Scraptown | Visited Modified Component R&D 9735 | -9/Scraptown | Visited DA-N13 Charitable Foundation 9766 | -9/Scraptown | Found DCF Scrap (27 items) 9873 | -9/Scraptown | Visited Science Testing Area 9914 | -9/Scraptown | Visited Cartography Club 11085 | -9/Scraptown | Self-destructed Last Messages --------------- Thing is, we need something more protective to complement the Scrap Suit, which is already great, but for longer expeditions we could use more coverage and integrity. Scrap Shields are already pretty good, but imagine an alternative version not limited to compatible fragments for repairs! Anyway, if you do find one, let me know. U9-RLH(c): Find a Scrap Shield yet? I may just have to go to the Subcaves myself. 10234_ Searching scrap... 10234_ Found 55 Matter. 10234_ Found Terrain Scan Processor. 10234_ Found ECM Suite. 10234_ Found Shotgun. 10234_ Found 36 Matter. 10422_ Y9-PZA(c): "Come one, come all! See for yourself a fine selection of the many wondrous pieces in our collection!" 10903_ VE-J8O(p) closely examines the mainframe. 11037_ Dropped Heat Sink. 11073_ Acquired Wheel. [Achievement: This Is Interesting...] Map ----- +----------------------------------------------------+ | ?????????????????????????????????????????????????? | | ?????????????????????????????????????????????????? | | ?????????????????????????????????????????????????? | | ?????????????????????????????????????????????????? | | ?????????????????????????????????????????????????? | | ?????????????????????????????????????????????????? | | ?????????????##??##########???####???????????????? | | ?????????????"""?#""|##"""#??## ##????????#?????? | | ????????"" ##"" ##""|##!!"#### ###### ##????? | | ????????"" #????? | | ???????# #????? | | ???????####################### ###########????? | | ?????????????????????????????## ##############??? | | ??????????????????????????????# #""""""""""""#??? | | ??????????????????????????????# #"""""""# " "#??? | | ??????????????????????????????# #" " [ # #??? | | ?????????###########??????????# #"[ #+####??? | | ?????????# #??????????# #" """#??? | | ?????????# ############ #"= ="#??? | | ?????????# ##*=*## ## #""""" ""#??? | | ?????????# ##=*]## ## #####" "#??? | | ?????????# ##*%/!* % ## #""""" X#??? | | ####?????# ##]![j=! !## # [ ##??? | | #?????# ??#=|]!j ## # "#??? | | #??????? ????#* j** ! ## # "#??? | | # ##????????# #?????#####@##### ## ###########??? | | # ########### ########### ##### ## ##???###?????? | | " """"""""""" """"""""""" """"" "" "#??? ??????? | | "#?? ???????? | | "#?? """ ""??? | | "#?" ???? | | "##" " """??? | | " "??? | | """""""""""""""""""""""""""" "##" "??? | | """""""""""""""""""""""""""" "#?" """ "??? | | ""###### ################"" "#?? ?????? | | ""#??? ?????????????#"" "#??#######??? | | ""#??? ?????????????#"" "#??#"""""#""# | | ""#? "" "" ????????????#"" "#?? !!!! !# | | ""# "" "???????????###"" "#? # | | ""# " ??????####### #"" "## # | | "" ""???? X" # | | "" ""???? "## #??? | | ""# " ?????######## #"" "#? ! !!#??? | | ""# "" "???????????###"" "#??#"""""#??? | | ""#? "" "" ????????????#"" "#???######??? | | ""#??? ?????????????#"" "#???????????? | | ""#??? ?????????????#"" "#???????????? | | ""###### ################"" "####?###??##? | | """""""""""""""""""""""""""" "##"###"###"#? | +----------------------------------------------------+ Best States ------------- Heat Dissipation 25 Energy Generation 15 Energy Capacity 250 Matter Stores 300 Matter Capacity 300 Sight Range 16 Terrain Scan Density 10 Armor Coverage 800 Core Shielding 20 Evasion (%) 55 Recoil Reduction 2 Item Schematics ----------------- None Robot Schematics ------------------ None Fabricated ------------ Nothing Alien Tech Used ----------------- None Achievements -------------- This Is Interesting... Challenges ------------ None Game ------ Seed BoltReinforcedCompressor Manual? 0 Play Time 00:43:33 Cumulative 15.9 hours Start 2024.08.13 @ 08:20:35 End 2024.08.13 @ 09:59:44 Sessions 1 Manual Loads 0 Difficulty Rogue Special Mode None Game No. 29 Rogue 29 Adventurer 0 Explorer 0 Win Type - Total 0 Types 0/0/0/0/0/0/0/0/0 Lore% 26 Gallery% 19 Achievement% 18 Wizard Run 0 Options --------- Layout 0 ASCII 0 Keyboard 1 Movement Arrows Keybinds 0 Fullscreen 2 Font 24/Smallcaps Map View 76x50 Zoom Use 0% Tactical HUD 1 Map Filters NONE Filters NONE Steam 1 RUN: 980b9a89-a958-4cc4-9e82-74e27e4d35e8